bitfinex/quotes_ETHUSD_20220731
["timestamp","ask_amount","ask_price","bid_price","bid_amount"]
[1659265682995,3.64475165,1713.0,1712.4,8.06931847]
[1659265683157,3.64475165,1713.0,1712.4,11.56931847]
[1659265683158,3.34475165,1713.0,1712.4,11.56931847]
[1659265683357,3.34475165,1713.0,1712.5,0.17598436]
[1659265683599,2.89804672,1712.9,1712.4,0.01291417]
[1659265683758,3.19804672,1712.9,1712.4,0.01291417]
[1659265687689,3.63634672,1712.9,1712.4,0.01291417]
[1659265688127,3.83634672,1712.9,1712.4,0.01291417]
[1659265690316,3.19804672,1712.9,1712.4,0.01291417]
[1659265690496,3.39804672,1712.9,1712.4,0.01291417]
[1659265692501,3.19804672,1712.9,1712.4,0.01291417]
[1659265692704,3.39804672,1712.9,1712.4,0.01291417]
[1659265692908,3.19804672,1712.9,1712.4,0.01291417]
[1659265693514,3.19804672,1712.9,1712.4,0.30481547]
[1659265694667,0.2,1712.8,1712.4,0.30481547]
[1659265694820,2.89804672,1712.9,1712.4,0.2919013]
[1659265696424,3.49804672,1712.9,1712.4,0.2919013]
[1659265697965,2.89804672,1712.8,1712.3,3.1625]
[1659265698320,3.34475165,1712.8,1712.3,3.1625]
[1659265699451,2.89804672,1712.7,1712.1,16.8001]
[1659265699659,3.09804672,1712.7,1712.1,16.6073]
[1659265699857,0.34471434,1712.6,1712.2,0.291925]
[1659265700042,0.2,1712.2,1711.9,0.05]
[1659265700255,0.2,1712.2,1711.6,10.07]
[1659265700256,3.09804672,1712.2,1711.7,3.0537]
[1659265700770,3.09804672,1712.2,1711.7,3.05649505]
[1659265701546,3.09804672,1712.2,1711.7,3.0537]
[1659265702913,3.09804672,1712.2,1711.6,10.07279517]
[1659265702914,0.2,1712.0,1711.6,10.07279517]
[1659265703129,3.09804672,1712.0,1711.6,10.07]
[1659265703299,2.89804672,1711.9,1711.6,10.07]
[1659265703477,2.89804672,1711.9,1711.6,10.07279517]
[1659265703795,2.89455347,1711.9,1711.6,10.07279517]
[1659265704198,3.19455347,1711.9,1711.6,10.07279517]
[1659265704378,0.2,1711.7,1711.6,10.07]
[1659265704579,3.09804672,1711.8,1711.5,11.5]
[1659265704580,2.89804672,1711.8,1711.5,11.5]
[1659265704805,3.19804672,1711.8,1711.5,11.5]
[1659265705148,3.19804672,1711.8,1711.4,0.03526277]
[1659265705149,4.65874672,1711.8,1711.4,0.03526277]
[1659265705708,4.65874672,1711.8,1711.4,0.0318896]
[1659265705910,2.89804672,1711.7,1711.4,0.0318896]
[1659265706621,0.74670493,1711.8,1711.4,0.0318896]
[1659265706622,3.34475165,1711.8,1711.4,0.0318896]
[1659265706828,0.44670493,1711.8,1711.5,0.17598436]
[1659265707057,9.328,1712.1,1711.5,0.17598436]
[1659265707058,9.378,1712.1,1711.5,0.17598436]
[1659265707229,11.78754672,1712.1,1711.5,5.50533132]
[1659265707429,11.78754672,1712.1,1711.5,5.21334132]
[1659265707629,8.59764672,1712.1,1711.6,0.17598436]
[1659265708155,0.01386693,1711.8,1711.6,0.46801966]
[1659265708458,0.01386693,1711.8,1711.6,1.92798966]
[1659265708750,0.01386693,1711.8,1711.7,3.17598436]
[1659265709166,0.01386693,1711.8,1711.7,6.17598436]
[1659265709564,0.01386693,1711.8,1711.7,6.18889853]
[1659265710153,0.01386693,1711.8,1711.7,9.68889853]
[1659265710884,0.01386693,1711.8,1711.7,6.78889853]
[1659265712365,0.01386693,1711.8,1711.7,6.48889853]
[1659265712628,0.01386693,1711.8,1711.7,3.18889853]
[1659265712779,0.64586693,1711.8,1711.6,3.6223353]
[1659265714057,0.64586693,1711.8,1711.6,0.2920353]
[1659265714257,0.632,1711.8,1711.6,0.2920353]
[1659265715967,0.632,1711.8,1711.4,0.20966028]
[1659265716170,0.632,1711.8,1711.4,0.0347239]
[1659265716580,0.632,1711.8,1711.4,0.21070826]
[1659265716780,0.05,1712.0,1711.4,3.71224696]
[1659265717012,0.21386693,1712.1,1711.4,1.96003396]
[1659265717214,0.2,1712.0,1711.4,1.96003396]
[1659265717376,0.2,1712.0,1711.4,4.96003396]
[1659265717769,0.15,1712.0,1711.4,4.96003396]
[1659265717970,2.91191365,1712.1,1711.6,1.45999]
[1659265718384,2.91191365,1712.1,1711.7,0.2920055]
[1659265718385,0.01386693,1712.1,1711.7,0.2920055]
[1659265718714,0.01386693,1712.1,1711.8,1.45974]
[1659265718873,0.01386693,1712.1,1711.8,1.92766436]
[1659265719267,0.01386693,1712.1,1711.8,3.67932016]
[1659265719501,0.01386693,1712.1,1712.0,1.45965]
[1659265719695,0.01386693,1712.1,1712.0,0.05]
[1659265719899,0.01386693,1712.1,1712.0,7.31498436]
[1659265720304,0.01386693,1712.1,1712.0,16.71303108]
[1659265720511,0.00086693,1712.1,1712.0,25.60683108]
[1659265721118,0.00086693,1712.1,1712.0,22.10683108]
[1659265721284,0.00086693,1712.1,1712.0,22.11974525]
[1659265721483,0.00086693,1712.1,1712.0,21.46974525]
[1659265721684,0.00086693,1712.1,1712.0,21.29376089]
[1659265721894,0.00086693,1712.1,1712.0,11.89571417]
[1659265722301,0.63286693,1712.1,1712.0,3.17781417]
[1659265722497,0.63286693,1712.1,1711.9,0.2919494]
[1659265723575,0.63286693,1712.1,1711.8,3.1649]
[1659265723576,3.53091365,1712.1,1711.7,0.00255535]
[1659265723809,3.53091365,1712.1,1711.4,0.20634416]
[1659265723810,3.83091365,1712.1,1711.4,0.25634416]
[1659265724020,3.49891365,1712.1,1711.4,0.20634416]
[1659265724422,9.67071858,1712.1,1711.4,0.20634416]
[1659265724623,9.37071858,1712.1,1711.6,3.28472286]
[1659265724827,9.07071858,1712.1,1711.6,3.28472286]
[1659265725024,9.07071858,1712.1,1711.4,9.83796829]
[1659265725326,0.44757186,1712.1,1711.5,4.65007672]
[1659265725536,0.44757186,1712.1,1711.6,3.28453114]
[1659265726508,0.44757186,1712.1,1711.7,0.2920069]
[1659265727842,0.44757186,1712.1,1711.6,0.00211038]
[1659265728192,0.44757186,1712.1,1711.5,3.0]
[1659265728193,0.44670493,1712.1,1711.5,3.0]
[1659265728592,0.44670493,1712.1,1711.5,3.00211044]
[1659265728817,0.44670493,1712.1,1711.5,4.75427574]
[1659265729216,0.44670493,1712.1,1711.5,6.21434574]
[1659265729749,0.44670493,1712.1,1711.5,6.5042453]
[1659265730037,0.44670493,1712.1,1711.5,3.2941564]
[1659265730942,0.44670493,1712.1,1711.5,6.19009262]
[1659265731097,0.44670493,1712.1,1711.5,3.2920459]
[1659265731098,0.15,1711.9,1711.5,3.2920459]
[1659265731300,0.15,1711.9,1711.5,0.29491999]
[1659265732233,0.15,1711.9,1711.5,0.2920459]
[1659265732651,0.15,1711.9,1711.5,4.7920459]
[1659265735820,0.15,1711.7,1711.5,0.2920459]
[1659265737535,0.05,1712.0,1711.5,3.19009262]
[1659265737845,0.35,1712.2,1711.6,0.01291417]
[1659265738020,3.19804672,1712.2,1711.6,0.01291417]
[1659265739288,3.19804672,1712.2,1711.7,0.2920246]
[1659265739489,3.04804672,1712.1,1711.7,0.2920246]
[1659265739791,3.48654672,1712.1,1711.7,0.2920246]
[1659265740744,3.48654672,1712.1,1711.6,0.01291417]
[1659265740944,3.48654672,1712.1,1711.6,0.01537616]
[1659265741370,3.33654672,1712.1,1711.6,0.01537616]
[1659265741846,3.33654672,1712.1,1711.6,0.01291417]
[1659265742444,3.33654672,1712.1,1711.7,0.2920231]
[1659265742941,0.15,1712.0,1711.7,0.2920231]
[1659265744203,0.14603727,1712.0,1711.7,0.2920231]
[1659265744406,0.14603727,1712.0,1711.6,0.01291417]
[1659265746226,3.19804672,1712.1,1711.6,0.01291417]
[1659265746663,0.14603727,1712.0,1711.6,0.01291417]
[1659265746860,0.14603727,1712.0,1711.6,0.30493967]
[1659265747267,0.14603727,1712.0,1711.6,0.01291417]
[1659265749967,3.04408399,1712.0,1711.6,0.01291417]
[1659265750134,6.00516706,1712.0,1711.6,0.01291417]
[1659265751834,3.04408399,1712.0,1711.6,0.01291417]
[1659265752135,2.89804672,1712.0,1711.6,0.01291417]
[1659265752537,4.94304399,1712.0,1711.4,0.323962]
[1659265752762,2.89804672,1711.9,1711.5,0.00265599]
[1659265753532,2.89804672,1711.9,1711.4,0.323962]
[1659265754176,2.89804672,1711.9,1711.4,0.32661814]
[1659265754482,3.19804672,1711.9,1711.4,0.32661814]
[1659265754637,3.93654672,1711.9,1711.4,0.32661814]
[1659265755054,3.93654672,1711.9,1711.4,0.323962]
[1659265755255,1.0385,1711.9,1711.4,0.323962]
[1659265755467,8.445,1712.1,1711.5,1.7521386]
[1659265755677,8.995,1712.1,1711.4,0.49988396]
[1659265756440,0.14603727,1712.0,1711.4,0.49988396]
[1659265756787,0.14603727,1712.0,1711.4,0.3238996]
[1659265757082,0.14603727,1712.0,1711.4,0.32653375]
[1659265757380,0.14603727,1712.0,1711.5,1.7521238]
[1659265760480,9.14170493,1712.1,1711.5,2.09809653]
[1659265760685,8.84170493,1712.1,1711.6,1.45995]
[1659265761188,3.23480493,1712.1,1711.7,0.01291417]
[1659265761399,3.23480493,1712.1,1711.8,0.29196]
[1659265762274,3.23480493,1712.1,1711.7,0.01291417]
[1659265762899,0.05,1712.4,1711.8,3.24397945]
[1659265763104,0.05,1712.5,1711.9,3.5]
[1659265763271,0.05,1712.7,1712.1,3.5]
[1659265763485,5.8911,1712.8,1712.1,3.5]
[1659265763683,6.3294,1712.8,1712.1,8.16383273]
[1659265764505,6.3294,1712.8,1712.1,9.62340513]
[1659265764903,9.17429952,1712.7,1712.1,3.44226]
[1659265765114,0.14603727,1712.5,1712.1,3.1503]
[1659265765274,3.33644672,1712.6,1712.1,3.1503]
[1659265765275,0.14603727,1712.3,1712.1,3.1503]
[1659265765474,0.14603727,1712.3,1711.7,13.84383912]
[1659265765674,0.14603727,1712.3,1711.8,3.1503]
[1659265765907,3.04408399,1712.3,1711.8,3.4423142]
[1659265766112,3.19804672,1712.2,1711.6,0.05]
[1659265766316,3.49804672,1712.2,1711.7,0.00263912]
[1659265766588,0.44670493,1712.1,1711.7,0.00263912]
[1659265767304,3.34475165,1712.1,1711.6,0.2920323]
[1659265767499,3.34475165,1712.1,1711.4,16.5228896]
[1659265767500,0.14603727,1711.9,1711.4,16.5228896]
[1659265767787,0.14603727,1711.9,1711.6,0.00264119]
[1659265768182,3.79078892,1712.1,1711.6,0.00264119]
[1659265768685,3.79078892,1712.1,1711.4,16.5228896]
[1659265768913,3.79078892,1712.1,1711.4,16.4728896]
[1659265769141,3.79078892,1712.1,1711.5,0.2920477]
[1659265769509,3.64475165,1712.1,1711.5,0.2920477]
[1659265770269,3.64475165,1712.1,1711.5,6.7920477]
[1659265770270,3.34475165,1712.1,1711.5,6.7920477]
[1659265770621,3.34475165,1712.1,1711.5,6.79468904]
[1659265770822,3.49078892,1712.1,1711.5,3.29468904]
[1659265771530,3.49078892,1712.1,1711.5,3.2920477]
[1659265772052,3.49078892,1712.1,1711.5,0.29524432]
[1659265772053,0.14603727,1711.7,1711.5,0.29524432]
[1659265772250,0.14603727,1711.7,1711.5,0.00319662]
[1659265772251,0.14389551,1711.7,1711.5,0.00319662]
[1659265772916,0.14389551,1711.7,1711.4,3.1821896]
[1659265773521,0.05,1712.0,1711.4,3.1821896]
[1659265773878,3.4911,1712.1,1711.4,3.1821896]
[1659265773879,3.0526,1712.1,1711.4,3.4742096]
[1659265774037,5.95064672,1712.1,1711.4,3.4742096]
[1659265774867,5.95064672,1712.1,1711.4,3.47660042]
[1659265775032,5.95064672,1712.1,1711.4,4.93674042]
[1659265775235,0.05,1712.2,1711.8,3.5]
[1659265775436,0.05,1712.4,1711.9,3.0]
[1659265775637,6.1574,1712.6,1712.0,6.39804672]
[1659265775869,2.9061,1712.8,1712.0,6.39804672]
[1659265775870,0.05,1712.7,1712.0,6.39804672]
[1659265776023,9.0635,1712.8,1712.0,6.86594108]
[1659265776228,3.34475165,1712.7,1712.0,3.5]
[1659265776673,3.34475165,1712.7,1711.9,14.2354]
[1659265776870,3.34475165,1712.7,1712.1,0.2919526]
[1659265777121,2.89804672,1712.6,1712.1,0.2919526]
[1659265777268,2.89804672,1712.6,1712.0,1.4596545]
[1659265778285,2.89804672,1712.6,1712.0,1.47256867]
[1659265778491,2.89804672,1712.6,1712.1,0.2919441]
[1659265779599,0.44670493,1712.7,1712.1,2.89804672]
[1659265779797,0.74670493,1712.7,1712.1,2.89804672]
[1659265780019,1.04670493,1712.7,1712.1,2.89804672]
[1659265780818,1.04670493,1712.7,1712.1,3.18994672]
[1659265781017,0.74670493,1712.7,1712.2,1.45951]
[1659265781255,0.44670493,1712.7,1712.2,4.37047089]
[1659265781557,0.05,1712.9,1712.2,4.66235089]
[1659265781752,3.05,1713.0,1712.3,3.1096]
[1659265781918,3.3,1713.0,1712.3,3.1096]
[1659265782747,19.8869,1713.1,1712.4,0.01291417]
[1659265782956,22.73494672,1713.1,1712.4,0.30478417]
[1659265784239,23.03494672,1713.1,1712.4,0.30478417]
[1659265784448,23.33494672,1713.1,1712.5,0.2918826]
[1659265784818,22.89674672,1713.1,1712.6,0.29631832]
[1659265785260,22.89674672,1713.1,1712.6,0.00445042]
[1659265785261,19.70804672,1713.1,1712.6,0.00445042]
[1659265785762,19.40804672,1713.1,1712.6,0.00445042]
[1659265786234,19.10804672,1713.1,1712.6,0.00445042]
[1659265786563,19.10804672,1713.1,1712.7,0.2918485]
[1659265786852,19.10804672,1713.1,1712.4,0.05]
[1659265786853,0.14389551,1712.9,1712.4,0.05]
[1659265787057,3.78024223,1712.9,1712.3,10.658]
[1659265787262,3.64194223,1712.9,1712.3,10.658]
[1659265787460,3.74393282,1712.9,1712.3,10.658]
[1659265787623,4.08864716,1712.9,1712.3,10.658]
[1659265788138,4.08864716,1712.9,1712.4,0.2919075]
[1659265788456,4.08864716,1712.9,1712.2,0.05]
[1659265788457,0.14389551,1712.6,1712.2,0.05]
[1659265788664,9.39934556,1712.8,1711.9,0.05]
[1659265788665,0.14389551,1712.3,1711.9,0.05]
[1659265788845,0.14389551,1712.3,1711.8,9.2576]
[1659265789031,0.14389551,1712.1,1711.8,9.54956]
[1659265789233,0.14389551,1712.1,1711.8,9.5495993]
[1659265789637,0.05,1712.4,1711.9,3.79194]
[1659265789830,2.9075,1712.6,1712.0,4.35764672]
[1659265790033,2.8575,1712.6,1712.0,4.35764672]
[1659265790357,2.8575,1712.6,1712.1,0.34801449]
[1659265790519,2.8575,1712.6,1712.1,1.80760449]
[1659265790719,2.8575,1712.6,1712.2,0.291918]
[1659265796051,2.89804672,1712.5,1712.2,0.291918]
[1659265796254,0.14389551,1712.2,1711.9,5.9343815]
[1659265796486,0.14180109,1712.2,1711.9,5.8843815]
[1659265796852,0.14180109,1712.2,1711.9,0.2919815]
[1659265799064,0.04180109,1712.2,1711.9,0.2919815]
[1659265799923,0.04180109,1712.2,1711.8,6.1028]
[1659265800314,0.04180109,1712.2,1711.8,3.1028]
[1659265800500,0.04180109,1712.2,1711.8,3.3948125]
[1659265801621,2.93984781,1712.2,1711.7,0.00760695]
[1659265801825,2.93984781,1712.2,1711.7,0.00485493]
[1659265801826,0.04180109,1711.9,1711.7,0.00485493]
[1659265802622,0.04180109,1711.9,1711.7,0.00744631]
[1659265802834,0.04180109,1711.9,1711.7,4.50744631]
[1659265803125,0.04180109,1711.9,1711.7,4.79946761]
[1659265803424,0.04180109,1711.9,1711.7,4.79687623]
[1659265805401,13.402,1712.3,1711.7,4.79687623]
[1659265805596,13.352,1712.3,1711.7,4.79687623]
[1659265806001,13.352,1712.3,1711.7,6.25680623]
[1659265806546,13.352,1712.3,1711.7,7.71675583]
[1659265806701,13.352,1712.3,1711.7,7.72009472]
[1659265807620,13.352,1712.3,1711.7,7.71675583]
[1659265808115,13.352,1712.3,1711.7,7.72009472]
[1659265808999,3.0,1712.6,1711.8,9.0]
[1659265809239,11.08165965,1713.8,1711.8,9.0]
[1659265809240,0.20570763,1715.9,1714.6,0.15819891]
[1659265809405,0.20570763,1715.9,1714.4,3.501]
[1659265809406,1.50052777,1716.0,1715.8,26.07386]
[1659265809609,0.29072,1716.8,1715.4,0.15819891]
[1659265809610,14.4272917,1716.4,1715.6,13.3070422]
[1659265809797,1.50037109,1716.3,1715.9,17.1668372]
[1659265810116,0.04180109,1716.3,1715.9,3.859795]
[1659265810314,0.29072,1716.8,1715.6,0.05]
[1659265810315,0.04180109,1716.7,1716.0,17.1668372]
[1659265810649,0.29072,1716.8,1716.0,17.1668372]
[1659265810795,0.04180109,1716.7,1716.1,17.1668372]
[1659265810997,0.29072,1716.8,1716.1,17.1668372]
[1659265811196,0.29072,1716.8,1715.6,3.0]
[1659265811197,0.04180109,1716.7,1716.2,17.1668372]
[1659265811744,0.29072,1716.8,1716.3,17.1668372]
[1659265812244,0.29072,1716.8,1716.4,17.1668372]
[1659265812742,0.29072,1716.8,1716.5,17.1668372]
[1659265812907,0.29072,1716.8,1716.5,20.06488392]
[1659265813108,0.29072,1716.8,1716.6,17.1668372]
[1659265813305,0.29072,1716.8,1716.7,0.15819891]
[1659265813509,0.00072,1716.8,1716.7,27.22308283]
[1659265813840,0.04833251,1717.2,1716.8,9.03879349]
[1659265814037,0.00033251,1717.2,1717.0,3.5]
[1659265814294,1.0,1718.5,1717.1,6.05624563]
[1659265814505,3.25649412,1718.4,1717.4,10.78863061]
[1659265814788,3.25649412,1718.4,1717.4,10.83863061]
[1659265814789,2.64331228,1718.0,1717.4,10.83863061]
[1659265814947,2.64331228,1718.0,1717.5,17.1668372]
[1659265815147,0.24180109,1717.4,1717.3,0.05]
[1659265815365,0.24180109,1717.4,1715.9,13.6932]
[1659265815366,0.04180109,1716.6,1716.4,0.29115]
[1659265815563,0.4872,1717.3,1716.2,3.53880704]
[1659265815564,0.4372,1717.3,1716.2,3.53880704]
[1659265815740,7.6492,1717.5,1716.2,0.03880704]
[1659265815741,0.04180109,1716.9,1716.2,0.03880704]
[1659265815960,0.2,1717.1,1716.3,3.65819891]
[1659265815961,0.4372,1717.1,1716.3,3.65819891]
[1659265816188,3.09820109,1717.8,1716.4,3.79471435]
[1659265816189,0.4371,1717.4,1716.4,3.79471435]
[1659265816355,0.05,1717.4,1716.8,12.13044574]
[1659265816685,0.05,1717.4,1716.8,15.58044574]
[1659265816898,0.05,1717.5,1716.9,3.78201435]
[1659265817080,0.4871,1717.7,1717.1,0.04105788]
[1659265817390,0.05,1717.9,1717.3,3.45]
[1659265817541,3.5,1718.9,1717.5,3.45]
[1659265817542,0.05,1718.0,1717.5,3.45]
[1659265817743,2.6313219,1718.7,1717.7,3.74091]
[1659265817744,0.05,1718.2,1717.7,3.74091]
[1659265818031,0.4368,1718.6,1717.8,0.2909128]
[1659265818032,2.74163057,1718.3,1717.8,0.2909128]
[1659265818236,0.4369,1718.3,1717.6,3.36446185]
[1659265818414,0.04180109,1718.4,1717.7,0.34471435]
[1659265818415,0.4869,1718.4,1717.7,0.34471435]
[1659265818602,0.05,1718.5,1718.1,6.34804672]
[1659265818835,0.05,1718.7,1718.5,0.29082]
[1659265819016,0.1048,1719.0,1718.5,0.29082]
[1659265819244,0.4368,1718.9,1718.4,11.97886702]
[1659265819403,1.26280109,1718.5,1718.4,11.97886702]
[1659265819605,1.69970109,1718.5,1718.4,11.97886702]
[1659265819925,0.00392551,1718.6,1718.4,11.97886702]
[1659265820240,0.47860109,1718.8,1718.4,11.97886702]
[1659265820454,0.4368,1718.8,1718.4,11.97886702]
[1659265820746,0.4368,1718.9,1718.4,11.97886702]
[1659265820954,10.0,1719.5,1718.4,11.97886702]
[1659265820955,0.05871051,1720.8,1719.2,0.15819891]
[1659265821110,0.00016066,1720.4,1720.1,7.0]
[1659265821310,0.05871051,1720.8,1719.9,7.5]
[1659265821311,0.05871051,1720.8,1720.2,6.31738699]
[1659265821511,11.625,1720.7,1720.4,6.16902278]
[1659265821806,1.221,1720.7,1720.4,2.59635014]
[1659265821935,0.05871051,1720.8,1720.4,2.94106449]
[1659265822140,0.05871051,1720.8,1720.6,3.5]
[1659265822341,0.31,1722.0,1721.2,0.03977369]
[1659265822580,0.16022631,1722.6,1721.2,0.03977369]
[1659265822581,9.07410739,1723.5,1722.9,0.03977369]
[1659265822788,9.07410739,1723.5,1723.0,3.26471382]
[1659265822789,2.66404528,1723.4,1723.0,3.26471382]
[1659265822936,7.0,1723.3,1723.1,1.01958699]
[1659265823136,7.0,1723.3,1722.7,0.05]
[1659265823137,2.78288593,1723.0,1722.7,0.05]
[1659265823375,7.0,1723.3,1722.2,4.51094983]
[1659265823376,7.0,1723.3,1722.4,0.05]
[1659265823581,0.06022631,1723.0,1722.4,1.04234133]
[1659265823797,2.59481852,1723.1,1722.0,1.783323]
[1659265823798,2.25504483,1723.1,1722.0,1.783323]
[1659265824001,6.9,1723.3,1722.1,1.77325722]
[1659265824290,2.86072431,1722.6,1721.1,1.45133]
[1659265824480,2.86072431,1722.6,1721.4,0.94730662]
[1659265824680,2.63934515,1722.7,1721.4,2.65123314]
[1659265824893,2.63934515,1722.7,1721.5,0.83080103]
[1659265825076,4.297033,1722.3,1721.1,1.45133]
[1659265825241,4.297033,1722.3,1721.1,4.95133]
[1659265825242,9.0,1722.3,1721.1,4.95133]
[1659265825498,1.5,1722.3,1721.3,3.5]
[1659265825874,2.87465745,1722.6,1721.1,3.5]
[1659265826143,0.4358,1722.5,1721.5,3.4]
[1659265826341,0.4358,1722.6,1721.7,3.4]
[1659265826583,0.4358,1722.8,1721.7,3.4]
[1659265826791,0.4358,1722.8,1721.3,0.29028]
[1659265826792,7.5,1722.4,1721.4,0.290281]
[1659265826941,3.5,1722.5,1721.1,3.4]
[1659265826942,2.85711369,1722.1,1721.1,3.4]
[1659265827145,0.436,1722.0,1721.1,3.4]
[1659265827370,0.05,1722.0,1721.1,3.45]
[1659265827539,0.05,1722.0,1721.1,3.55]
[1659265827759,0.05,1722.0,1721.1,0.05]
[1659265827975,7.936,1721.9,1721.1,0.05]
[1659265828142,11.84083903,1721.6,1720.7,0.5]
[1659265828366,11.84083903,1721.6,1721.3,0.04096491]
[1659265828367,3.3,1721.5,1721.3,0.04096491]
[1659265828686,0.6,1721.5,1721.3,0.04096491]
[1659265828846,5.5,1721.3,1720.7,0.5]
[1659265829049,0.3,1721.3,1720.7,0.8748559]
[1659265829254,0.6,1721.3,1720.7,0.5]
[1659265829461,0.4362,1721.2,1720.7,0.5]
[1659265829806,0.4362,1721.2,1719.6,5.21206577]
[1659265829807,11.657902,1721.0,1719.4,3.5]
[1659265829960,0.05,1720.7,1720.0,0.08283]
[1659265830162,0.05,1720.8,1720.1,0.81136642]
[1659265830366,3.19964872,1720.9,1720.1,0.37486642]
[1659265830568,3.49964872,1720.9,1720.1,0.37486642]
[1659265830891,3.93594872,1720.9,1720.1,0.37486642]
[1659265831058,2.84321567,1720.7,1720.0,0.13283]
[1659265831254,3.4363,1720.6,1720.0,0.13283]
[1659265831581,2.84003203,1719.9,1719.0,1.17672377]
[1659265831778,0.4365,1719.8,1719.0,1.17672377]
[1659265831985,1.0365,1719.8,1719.0,1.17672377]
[1659265832173,1.0365,1719.8,1719.1,3.5]
[1659265832352,1.0365,1719.8,1718.8,0.4368]
[1659265832353,4.0365,1719.8,1718.8,0.4368]
[1659265832550,0.05,1719.7,1718.8,4.0]
[1659265832750,0.05,1719.7,1718.8,7.5]
[1659265833083,0.05,1719.7,1719.0,3.8]
[1659265833412,0.21244,1719.8,1719.0,0.3]
[1659265833562,0.16244,1719.8,1719.0,0.3]
[1659265834111,0.16610714,1719.8,1719.0,0.3]
[1659265834293,0.16610714,1719.8,1719.1,0.4367]
[1659265834480,0.16610714,1719.8,1719.2,3.5]
[1659265834689,0.16610714,1719.8,1719.0,3.85]
[1659265834997,0.24866,1719.8,1719.0,3.85]
[1659265835199,0.24866,1719.8,1719.0,0.3]
[1659265835200,0.08315,1719.7,1719.0,0.3]
[1659265835398,0.60404,1719.6,1719.0,0.64471435]
[1659265835604,0.46744,1719.6,1719.0,0.64471435]
[1659265835971,0.16437,1719.5,1719.0,0.64471435]
[1659265836182,0.16744,1719.4,1719.0,0.64471435]
[1659265836411,0.24866,1719.4,1719.0,0.64471435]
[1659265836719,0.54866,1719.4,1719.0,0.3]
[1659265836926,0.24866,1719.4,1719.0,0.3]
[1659265837725,0.24866,1719.4,1719.0,0.33139737]
[1659265838037,0.05,1719.7,1719.0,0.33139737]
[1659265838183,0.05,1719.8,1719.0,0.33139737]
[1659265838521,0.05,1719.9,1719.1,3.5]
[1659265838873,0.4365,1719.8,1719.1,3.5]
[1659265839073,0.51772,1719.8,1719.1,3.5]
[1659265839673,0.08122,1719.8,1719.1,3.5]
[1659265839907,0.08122,1719.8,1719.1,3.84471435]
[1659265840277,0.08122,1719.8,1719.1,0.34471435]
[1659265840518,0.16744,1719.7,1719.1,0.34471435]
[1659265840736,0.08122,1719.7,1719.1,0.34471435]
[1659265841030,0.4366,1719.6,1719.0,0.3]
[1659265841205,0.4366,1719.6,1718.5,1.00350297]
[1659265841206,11.9486763,1719.5,1718.5,1.00350297]
[1659265841391,5.82977908,1719.4,1718.5,1.00350297]
[1659265841594,0.6,1719.3,1718.3,0.2908295]
[1659265841794,0.05,1719.2,1718.3,0.3408295]
[1659265841982,0.05,1719.2,1718.3,0.05]
[1659265842410,0.05,1719.2,1718.3,7.5408221]
[1659265842615,4.5,1719.1,1718.2,0.05762646]
[1659265842815,5.15,1719.1,1718.2,0.05762646]
[1659265842978,5.15,1719.1,1717.8,8.2869]
[1659265843190,0.05,1718.9,1717.9,0.437]
[1659265843388,0.05,1718.9,1718.3,0.06077306]
[1659265843625,0.35,1719.0,1718.3,0.40548741]
[1659265843825,0.65,1719.1,1718.3,0.40548741]
[1659265844044,0.35,1719.1,1718.3,0.40548741]
[1659265844394,0.35,1719.1,1718.3,0.05843543]
[1659265844610,0.7367,1719.0,1718.3,0.05843543]
[1659265845053,3.7367,1719.0,1718.3,0.05843543]
[1659265845334,3.7367,1719.0,1717.6,0.4371]
[1659265845335,3.2180677,1718.7,1717.6,0.4371]
[1659265845492,3.2180677,1718.7,1717.7,0.05]
[1659265845493,3.4868,1718.6,1717.7,0.05]
[1659265845704,6.38484672,1718.6,1717.7,0.05]
[1659265846228,0.4868,1718.6,1717.7,3.55]
[1659265846431,0.05,1718.6,1717.8,0.437]
[1659265846618,0.05,1718.6,1717.9,0.03142737]
[1659265846805,0.3,1718.8,1717.9,0.03142737]
[1659265846806,0.4868,1718.7,1717.9,0.03142737]
[1659265847008,0.4368,1718.7,1717.9,0.03142737]
[1659265847339,3.63484672,1718.7,1717.9,0.03142737]
[1659265847644,3.3,1718.6,1717.9,0.03142737]
[1659265847848,0.4369,1718.5,1717.9,0.03142737]
[1659265848265,2.89804672,1718.4,1717.9,0.03142737]
[1659265849089,2.89804672,1718.4,1717.7,0.05]
[1659265849250,2.89804672,1718.4,1717.6,0.05]
[1659265849451,2.94804672,1718.4,1717.7,0.0602204]
[1659265849653,2.89804672,1718.3,1717.7,0.40493475]
[1659265850090,2.89804672,1718.3,1717.5,0.6319441]
[1659265850287,3.33494672,1718.3,1717.5,0.2909741]
[1659265850457,2.89804672,1718.2,1717.5,0.2909741]
[1659265850648,2.89804672,1718.2,1717.6,0.34471435]
[1659265851653,2.89804672,1718.2,1717.6,0.3800965]
[1659265853313,4.4869,1718.4,1717.6,0.3800965]
[1659265853314,0.05,1718.4,1717.7,3.53514672]
[1659265853512,8.7322,1718.8,1717.8,3.88009237]
[1659265853513,0.05,1718.5,1717.8,3.88009237]
[1659265853831,2.97926672,1718.5,1717.9,0.437]
[1659265854637,0.08122,1718.4,1717.9,0.437]
[1659265854856,0.08122,1718.4,1717.8,4.31709237]
[1659265855011,0.16244,1718.4,1717.8,4.31709237]
[1659265855211,3.06048672,1718.4,1717.8,3.88009237]
[1659265855729,2.89804672,1718.3,1717.8,0.38009237]
[1659265856369,0.05,1718.5,1717.9,3.5]
[1659265856370,2.89804672,1718.4,1717.9,3.5]
[1659265856566,5.7322,1718.8,1718.0,0.39367139]
[1659265856567,0.05,1718.6,1718.0,0.39367139]
[1659265856765,2.89804672,1718.6,1718.0,0.39367139]
[1659265858716,3.33484672,1718.6,1718.0,0.39367139]
[1659265858882,2.89804672,1718.5,1718.0,0.39367139]
[1659265860303,2.89804672,1718.5,1717.8,1.0688244]
[1659265860505,0.4369,1718.4,1717.7,0.05]
[1659265860733,0.4369,1718.4,1717.6,0.05]
[1659265860734,2.89804672,1718.3,1717.6,0.05]
[1659265860895,2.89804672,1718.3,1717.6,0.35496184]
[1659265861092,2.89804672,1718.3,1717.6,0.79206184]
[1659265861729,3.33494672,1718.3,1717.6,0.35496184]